bitfinex-derivatives/quotes_BNBF0:USTF0_20250417
["timestamp","ask_amount","ask_price","bid_price","bid_amount"]
[1744884411667,0.3408781,586.72,585.6,0.31348878]
[1744884413169,0.3408781,586.72,585.59,0.34153588]
[1744884413369,0.3408781,586.72,585.61,0.3134901]
[1744884413568,0.3408781,586.72,585.59,0.34153588]
[1744884413569,0.3408781,586.72,585.62,0.3134901]
[1744884413763,0.3408781,586.72,585.6,0.3134901]
[1744884414069,0.30608293,586.71,585.61,0.3134901]
[1744884414268,0.30608293,586.71,585.6,0.3134901]
[1744884414469,0.30608293,586.71,585.61,0.3134901]
[1744884414671,0.30608293,586.71,585.6,0.3134901]
[1744884414871,0.30608293,586.71,585.61,0.3134901]
[1744884415071,0.30608293,586.71,585.6,0.3134901]
[1744884415266,0.30608293,586.71,585.62,0.3134901]
[1744884415469,0.30608293,586.71,585.63,0.3134901]
[1744884415666,0.30608293,586.71,585.6,0.3134901]
[1744884416471,0.3408781,586.72,585.59,0.34153588]
[1744884416673,0.30608286,586.71,585.6,0.31348866]
[1744884418073,0.3408781,586.72,585.59,0.34153588]
[1744884418273,0.30608315,586.71,585.6,0.31348895]
[1744884419567,0.3408781,586.72,585.6,0.31348895]
[1744884419770,0.30608288,586.71,585.61,0.31348868]
[1744884419975,0.30608288,586.71,585.6,0.31348868]
[1744884420973,0.3408781,586.72,585.59,0.34153588]
[1744884421176,0.30608266,586.71,585.6,0.31348846]
[1744884421476,0.30608266,586.71,585.61,0.34152422]
[1744884421679,0.30608266,586.71,585.62,0.31348846]
[1744884421873,0.30608266,586.71,585.63,0.34151255]
[1744884422178,0.30608266,586.71,585.64,0.31348846]
[1744884422371,0.30608266,586.71,585.64,0.65499518]
[1744884422573,0.30608266,586.71,585.65,0.31348846]
[1744884423978,0.3408781,586.72,585.64,0.34150672]
[1744884424178,0.30607527,586.71,585.65,0.31348103]
[1744884425582,0.3408781,586.72,585.64,0.34150672]
[1744884425780,0.30607499,586.71,585.65,0.31348075]
[1744884426582,0.3408781,586.72,585.65,0.31348075]
[1744884427481,0.3408781,586.72,585.64,0.34150672]
[1744884434985,0.3408781,586.72,585.65,0.31349455]
[1744884439584,0.30607679,586.71,585.65,0.31349455]
[1744884440090,0.3408781,586.72,585.64,0.34150672]
[1744884440294,0.30607542,586.71,585.65,0.3134812]
[1744884441797,0.3408781,586.72,585.65,0.3134812]
[1744884443397,0.3408781,586.72,585.64,0.34150672]
[1744884443599,0.3408781,586.72,585.65,0.31348153]
[1744884444397,0.3408781,586.72,585.64,0.34150672]
[1744884444597,0.3408781,586.72,585.65,0.31348105]
[1744884445093,0.3408781,586.72,585.64,0.34150672]
[1744884445295,0.3408781,586.72,585.65,0.31348114]
[1744884445999,0.3408781,586.72,585.64,0.34150672]
[1744884447600,0.3408781,586.72,585.65,0.31348698]
[1744884451701,0.3408781,586.72,585.66,0.31348613]
[1744884451899,0.3408781,586.72,585.65,0.31348613]
[1744884452195,0.3408781,586.72,585.66,0.31348613]
[1744884452400,0.3408781,586.72,585.65,0.31348613]
[1744884452601,0.3408781,586.72,585.66,0.31348613]
[1744884452800,0.3408781,586.72,585.65,0.31348613]
[1744884453302,0.3408781,586.72,585.64,0.34150672]
[1744884453503,0.3408781,586.72,585.65,0.31348552]
[1744884456205,0.3060804,586.71,585.65,0.31348552]
[1744884456400,0.3408781,586.72,585.64,0.34150672]
[1744884460507,0.33065342,586.72,585.64,0.34150672]
[1744884468012,0.33065342,586.72,585.65,0.31348393]
[1744884471213,0.33065342,586.72,585.64,0.34150672]
[1744884471410,0.33065342,586.72,585.65,0.31348763]
[1744884472815,0.33065342,586.72,585.64,0.34150672]
[1744884473030,0.33065342,586.72,585.65,0.31348744]
[1744884479018,0.30656853,586.71,585.65,0.31348744]
[1744884480718,0.33065342,586.72,585.65,0.31348744]
[1744884480919,0.33065342,586.72,585.64,0.34150672]
[1744884481120,0.33065342,586.72,585.65,0.31348755]
[1744884482220,0.33065342,586.72,585.64,0.34150672]
[1744884482418,0.33065342,586.72,585.65,0.31348256]
[1744884487223,0.33065342,586.72,585.64,0.34150672]
[1744884487416,0.33065342,586.72,585.65,0.31347351]
[1744884488921,0.33065342,586.72,585.64,0.34150672]
[1744884489121,0.33065342,586.72,585.65,0.31347581]
[1744884490725,0.30655786,586.71,585.65,0.31347581]
[1744884492325,0.33065342,586.72,585.64,0.34150672]
[1744884492526,0.30655812,586.71,585.65,0.31347577]
[1744884493424,0.33065342,586.72,585.65,0.34150089]
[1744884493620,0.33065342,586.72,585.66,0.34149506]
[1744884503420,0.33065342,586.72,585.67,0.31347713]
[1744884503624,0.33065342,586.72,585.67,0.65496636]
[1744884503827,0.33065342,586.72,585.68,0.31347713]
[1744884504629,0.33065342,586.72,585.67,0.34148923]
[1744884506330,0.33065342,586.72,585.68,0.31347673]
[1744884509231,0.33065342,586.72,585.67,0.34148923]
[1744884509436,0.33065342,586.72,585.68,0.31347651]
[1744884510832,0.33065342,586.72,585.67,0.34148923]
[1744884511031,0.30655864,586.71,585.68,0.31347626]
[1744884515635,0.33065342,586.72,585.67,0.34148923]
[1744884515836,0.30656076,586.71,585.68,0.31347839]
[1744884517237,0.33065342,586.72,585.67,0.34148923]
[1744884517432,0.30656034,586.71,585.68,0.31347796]
[1744884518841,0.33065342,586.72,585.67,0.34148923]
[1744884519141,0.30656005,586.71,585.68,0.31347767]
[1744884522038,0.30656005,586.71,585.67,0.34148923]
[1744884522240,0.30656011,586.7,585.68,0.31347774]
[1744884522438,0.30656011,586.71,585.68,0.31347774]
[1744884522743,0.30656011,586.7,585.68,0.31347774]
[1744884523043,0.30656011,586.69,585.68,0.31347774]
[1744884523237,0.30656011,586.71,585.68,0.31347774]
[1744884523441,0.33065342,586.72,585.68,0.31347774]
[1744884523637,0.33065342,586.72,585.67,0.34148923]
[1744884523838,0.30656029,586.71,585.68,0.31347792]
[1744884524443,0.33065342,586.72,585.68,0.31347792]
[1744884525144,0.33065342,586.72,585.69,0.31347792]
[1744884525343,0.33065342,586.72,585.68,0.31347792]
[1744884525544,0.33065342,586.72,585.69,0.31347792]
[1744884525744,0.33065342,586.72,585.68,0.31347792]
[1744884525942,0.33065342,586.72,585.69,0.31347792]
[1744884526141,0.33065342,586.72,585.68,0.31347792]
[1744884531955,0.33065342,586.72,585.69,0.3134738]
[1744884532155,0.33065342,586.72,585.67,0.34148923]
[1744884532156,0.33065342,586.72,585.7,0.3134738]
[1744884532358,0.33065342,586.72,585.68,0.3134738]
[1744884532557,0.33065342,586.72,585.69,0.3134738]
[1744884532856,0.33065342,586.72,585.7,0.3134738]
[1744884533053,0.33065342,586.72,585.71,0.3134738]
[1744884533261,0.33065342,586.72,585.67,0.34148923]
[1744884542961,0.33065342,586.72,585.68,0.31347432]
[1744884547570,0.33065342,586.72,585.69,0.34147757]
[1744884547760,0.33065342,586.72,585.7,0.31339778]
[1744884548064,0.33065342,586.72,585.71,0.34146591]
[1744884552172,0.33065342,586.72,585.72,0.31339439]
[1744884552467,0.33065342,586.72,585.73,0.34145425]
[1744884552672,0.33065342,586.72,585.74,0.31339439]
[1744884552873,0.33065342,586.72,585.75,0.34144259]
[1744884557577,1.30401193,588.03,585.75,0.34144259]
[1744884557778,0.34018233,587.92,585.76,0.313392]
[1744884558076,0.30645802,587.91,585.77,0.34143093]
[1744884558277,0.34024599,587.81,585.78,0.313392]
[1744884558478,0.30645802,587.8,585.79,0.34141927]
[1744884558672,0.34030968,587.7,585.8,0.313392]
[1744884558875,0.30645802,587.69,585.81,0.34140762]
[1744884559074,0.34032705,587.67,585.82,0.313392]
[1744884559271,0.30645802,587.66,585.83,0.34139596]
[1744884559470,0.34034442,587.64,585.83,0.34139596]
[1744884559677,0.30645802,587.63,585.84,0.313392]
[1744884559877,0.3403618,587.61,585.84,0.65478214]
[1744884560078,0.30645802,587.6,585.85,0.313392]
[1744884560278,0.34037918,587.58,585.85,0.313392]
[1744884560577,0.30645802,587.57,585.85,0.313392]
[1744884560778,0.34039656,587.55,585.84,0.34139014]
[1744884560979,0.30645672,587.54,585.85,0.313374]
[1744884561179,0.34041394,587.52,585.85,0.313374]
[1744884561379,0.30645672,587.51,585.85,0.313374]
[1744884561681,0.34043132,587.49,585.85,0.313374]
[1744884561882,0.30645672,587.48,585.85,0.313374]
[1744884562081,0.34044871,587.46,585.85,0.313374]
[1744884562280,0.30645672,587.45,585.85,0.313374]
[1744884562480,0.34046609,587.43,585.86,0.3133744]
[1744884562681,0.30645712,587.42,585.85,0.3133744]
[1744884562881,0.34048348,587.4,585.84,0.34139014]
[1744884563081,0.34048348,587.4,585.86,0.31337375]
[1744884563282,0.30645712,587.39,585.84,0.34139014]
[1744884563481,0.34050087,587.37,585.85,0.31337317]
[1744884563677,0.30645712,587.36,585.85,0.31337317]
[1744884563982,0.34051826,587.34,585.85,0.31337317]
[1744884564178,0.30645712,587.33,585.85,0.31337317]
[1744884564383,0.34053566,587.31,585.85,0.31337317]
[1744884564683,0.30645712,587.3,585.85,0.31337317]
[1744884565285,0.34055305,587.28,585.85,0.31337317]
[1744884565483,0.30645712,587.27,585.85,0.31337317]
[1744884565785,0.34057045,587.25,585.85,0.31337317]
[1744884566083,0.30645712,587.24,585.85,0.31337317]
[1744884566284,0.34058205,587.23,585.85,0.31337317]
[1744884566485,0.30645712,587.22,585.85,0.31337317]
[1744884566685,0.34059365,587.21,585.85,0.31337317]
[1744884566885,0.30645712,587.2,585.85,0.31337317]
[1744884567081,0.34060525,587.19,585.85,0.31337317]
[1744884567280,0.30645712,587.18,585.85,0.31337317]
[1744884567484,0.34061685,587.17,585.85,0.31337317]
[1744884567681,0.30645712,587.16,585.84,0.34139014]
[1744884567881,0.30645712,587.16,585.85,0.3133452]
[1744884568282,0.34061685,587.17,585.84,0.34139014]
[1744884568482,0.30642578,587.16,585.85,0.31334301]
[1744884568781,0.34062845,587.15,585.86,0.34137848]
[1744884568980,0.30642578,587.14,585.87,0.31334301]
[1744884569184,0.30642578,587.14,585.88,0.34136683]
[1744884569484,0.34064006,587.13,585.89,0.31334301]
[1744884569682,0.30642578,587.12,585.9,0.34135518]
[1744884572382,0.34064006,587.13,585.9,0.34135518]
[1744884572586,0.30643224,587.12,585.9,0.34135518]
[1744884576082,0.30643224,587.12,585.91,0.3133445]
[1744884576589,0.30643224,587.12,585.9,0.34135518]
[1744884576785,0.30643224,587.12,585.91,0.31335374]
[1744884577087,0.63752679,587.11,585.91,0.31335374]
[1744884577283,0.6470897,587.1,585.91,0.31335374]
[1744884577486,0.64709551,587.09,585.91,0.31335374]
[1744884577682,0.64710131,587.08,585.91,0.31335374]
[1744884577887,0.64710711,587.07,585.91,0.31335374]
[1744884578187,0.64711291,587.06,585.91,0.31335374]
[1744884578386,0.64711872,587.05,585.9,0.34135518]
[1744884578583,0.64712452,587.04,585.9,0.34135518]
[1744884578882,0.30647232,587.03,585.91,0.31338966]
[1744884579486,0.29679791,587.02,585.91,0.31338966]
[1744884579685,0.30647232,587.01,585.9,0.34135518]
[1744884580187,0.64718201,587.01,585.9,0.34135518]
[1744884580389,0.30647232,587.0,585.9,0.34135518]
[1744884581991,0.29682322,586.99,585.9,0.34135518]
[1744884582290,0.30647232,586.98,585.9,0.34135518]
[1744884583693,0.30647718,586.97,585.9,0.34135518]
[1744884583889,0.30647718,586.98,585.9,0.34135518]
[1744884584192,0.30647718,586.97,585.9,0.34135518]
[1744884584393,0.30647718,586.98,585.9,0.34135518]
[1744884584694,0.30647718,586.97,585.9,0.34135518]
[1744884584894,0.29682069,586.99,585.9,0.34135518]
[1744884585392,0.30647938,586.98,585.9,0.34135518]
[1744884587798,0.30647938,587.0,585.9,0.34135518]
[1744884587996,0.34070969,587.01,585.9,0.34135518]
[1744884588995,0.29679917,587.0,585.9,0.34135518]
[1744884590604,0.34070969,587.01,585.9,0.34135518]
[1744884592009,0.29677513,587.0,585.9,0.34135518]
[1744884593609,0.34070969,587.01,585.9,0.34135518]
[1744884594910,0.29677513,587.0,585.9,0.34135518]
[1744884596610,0.34070969,587.01,585.9,0.34135518]
[1744884597912,0.60325978,587.0,585.9,0.34135518]
[1744884598111,0.29677639,587.0,585.9,0.34135518]
[1744884598308,0.30648311,586.99,585.9,0.34135518]
[1744884599910,0.60329494,586.99,585.9,0.34135518]
[1744884600108,0.30648311,586.98,585.9,0.34135518]
[1744884602716,0.30648311,587.0,585.9,0.34135518]
[1744884603017,0.60328698,586.99,585.9,0.34135518]
[1744884603416,0.30647388,586.98,585.9,0.34135518]
[1744884604118,0.2968131,586.99,585.9,0.34135518]
[1744884604312,0.30647037,586.98,585.9,0.34135518]
[1744884605818,0.34070969,587.01,585.9,0.34135518]
[1744884606019,0.2968726,586.99,585.9,0.34135518]
[1744884606313,0.30646976,586.98,585.9,0.34135518]
[1744884607215,0.2968726,586.99,585.9,0.34135518]
[1744884607521,0.30646948,586.98,585.9,0.34135518]
[1744884608819,0.30646948,586.97,585.9,0.34135518]
[1744884609024,0.2968131,586.99,585.9,0.34135518]
[1744884609223,0.30646976,586.98,585.9,0.34135518]
[1744884611728,0.30646976,587.0,585.9,0.34135518]
[1744884612026,0.2968131,586.99,585.9,0.34135518]
[1744884612322,0.30646976,586.98,585.9,0.34135518]
[1744884614731,0.34070969,587.01,585.9,0.34135518]
[1744884615828,0.63749874,587.01,585.9,0.34135518]
[1744884620636,0.34070969,587.01,585.9,0.34135518]
[1744884621934,0.63748229,587.01,585.9,0.34135518]
[1744884623530,0.34070969,587.01,585.9,0.34135518]
[1744884624636,0.30644832,587.0,585.91,0.31336557]
[1744884625235,0.63748355,587.01,585.9,0.34135518]
[1744884626637,0.34070969,587.01,585.9,0.34135518]
[1744884635139,0.34070969,587.01,585.91,0.31334683]
[1744884636634,0.30642964,587.0,585.91,0.31334683]
[1744884642138,0.34070969,587.01,585.91,0.31334683]
[1744884642643,0.30643045,587.0,585.91,0.31334683]
[1744884642840,0.34070969,587.01,585.91,0.31334683]
[1744884643046,0.30643213,587.0,585.91,0.31334683]
[1744884646550,0.34070969,587.01,585.9,0.34135518]
[1744884646748,0.34070969,587.01,585.91,0.31334929]
[1744884648149,0.34070969,587.01,585.9,0.34135518]
[1744884648351,0.34070969,587.01,585.91,0.31334912]
[1744884649850,0.34070969,587.01,585.9,0.34135518]
[1744884650051,0.34070969,587.01,585.91,0.31334884]
[1744884651853,0.34070969,587.01,585.91,0.82234884]
[1744884652054,0.79743278,587.0,585.92,0.31334884]
[1744884652253,0.30643278,586.99,585.92,0.31334884]
[1744884658064,0.491,587.0,585.91,1.526]
[1744884658361,0.30643446,586.99,585.92,0.31335167]
[1744884660967,0.491,587.0,585.91,1.526]
[1744884661163,0.30643474,586.99,585.92,0.31335195]
[1744884665765,0.491,587.0,585.91,1.526]
[1744884666070,0.30643512,586.99,585.92,0.31335233]
[1744884666267,0.30643512,586.98,585.92,0.31335233]
[1744884666469,0.30643512,587.0,585.92,0.31335233]
[1744884666665,0.30643512,586.99,585.92,0.31335233]
[1744884666867,0.30643512,587.0,585.92,0.31335233]
[1744884667171,0.30643512,586.99,585.92,0.31335233]
[1744884667372,0.34070969,587.01,585.91,1.014]
[1744884667672,0.30643475,587.0,585.92,0.31335195]
[1744884667971,0.34070969,587.01,585.92,0.31335195]
[1744884669269,0.34070969,587.01,585.92,0.93635195]
[1744884669474,0.598,587.0,585.93,0.31335195]
[1744884675177,0.598,587.0,585.93,1.08235195]
[1744884675378,0.598,587.0,585.94,0.31335195]
[1744884675579,0.598,587.0,585.93,1.533]
[1744884675772,0.598,587.0,585.94,0.31333969]
[1744884677078,0.598,587.0,585.93,1.533]
[1744884677277,0.598,587.0,585.94,0.31333958]
[1744884678675,0.598,587.0,585.93,1.533]
[1744884678981,0.598,587.0,585.94,0.31333527]
[1744884682086,0.598,587.0,585.95,0.31333725]
[1744884682287,0.598,587.0,585.96,0.31333725]
[1744884682485,0.598,587.0,585.97,0.31333725]
[1744884682684,0.598,587.0,585.94,0.31333725]
[1744884682885,0.598,587.0,585.95,0.31333725]
[1744884683083,0.598,587.0,585.94,0.31333725]
[1744884683388,0.3064218,586.99,585.94,0.31333725]
[1744884683589,0.598,587.0,585.93,1.533]
[1744884683786,0.30643193,586.99,585.94,0.31334911]
[1744884688489,0.598,587.0,585.93,1.8297688]
[1744884688689,0.30643775,586.99,585.94,0.31335496]
[1744884691890,0.598,587.0,585.93,1.8297688]
[1744884692091,0.30643746,586.99,585.94,0.31335468]
[1744884693490,0.598,587.0,585.93,1.533]
[1744884693686,0.30643775,586.99,585.94,0.31335496]
[1744884696495,0.30643775,587.0,585.94,0.31335496]
[1744884696696,0.30643775,586.99,585.94,0.31335496]
[1744884696897,0.34070969,587.01,585.93,1.533]
[1744884697197,0.30643721,587.0,585.94,0.31335443]
[1744884698499,0.34070969,587.01,585.93,1.82976754]
[1744884698700,0.30643584,587.0,585.94,0.31335305]
[1744884700199,0.704,586.99,585.95,0.733]
[1744884700401,0.30643584,586.98,585.96,0.31335305]
[1744884701998,0.30643244,586.97,585.97,0.31334964]
[1744884702194,0.30643244,586.97,585.95,0.733]
[1744884702195,0.30643244,586.98,585.98,0.31334964]
[1744884702395,0.30643244,586.98,585.95,0.733]
[1744884702396,0.30643244,586.97,585.96,0.31334964]
[1744884702598,0.30643244,586.96,585.96,0.31334964]
[1744884702798,0.30643244,586.98,585.96,0.31334964]
[1744884703001,0.30643244,586.97,585.96,0.31334964]
[1744884703202,0.30643244,586.98,585.96,0.31334964]
[1744884704204,0.704,586.99,585.96,0.31334964]
[1744884706907,0.704,586.99,585.95,1.02976754]
[1744884707109,0.704,586.99,585.96,0.31335552]
[1744884708604,0.704,586.99,585.95,0.733]
[1744884708803,0.704,586.99,585.96,0.31335735]
[1744884710306,0.704,586.99,585.95,1.02976754]
[1744884710506,0.704,586.99,585.96,0.3133568]
[1744884712512,0.704,586.99,585.97,0.608]
[1744884712811,0.704,586.99,585.98,0.3133568]
[1744884713610,0.704,586.99,585.97,1.21]
[1744884713813,0.30643777,586.98,585.98,0.31335499]
[1744884716919,0.704,586.99,585.97,1.21]
[1744884717115,0.30644004,586.98,585.98,0.31335725]
[1744884717613,0.3064386,587.0,585.98,0.31335725]
[1744884719520,0.34070969,587.01,585.97,1.21]
[1744884720419,0.479,587.0,585.98,0.542]
[1744884732929,0.30647793,586.99,585.98,0.542]
[1744884736433,0.479,587.0,585.98,0.542]
[1744884736628,0.30647391,586.98,585.98,0.542]
[1744884736827,0.30647391,586.97,585.98,0.542]
[1744884737132,0.30647391,586.99,585.98,0.542]
[1744884737331,0.30647391,586.98,585.98,0.542]
[1744884737530,0.30647391,586.99,585.98,0.542]
[1744884737728,0.30647391,586.98,585.98,0.542]
[1744884737932,0.30647391,586.97,585.98,0.542]
[1744884738134,0.30647391,586.99,585.98,0.542]
[1744884738333,0.30647391,586.98,585.98,0.542]
[1744884738533,0.30647391,586.99,585.98,0.542]
[1744884738733,0.30647391,586.98,585.98,0.542]
[1744884738933,0.30647391,587.0,585.98,0.542]
[1744884739129,0.30647391,586.99,585.98,0.542]
[1744884739332,0.30647391,586.98,585.98,0.542]
[1744884739532,0.63749747,587.01,585.98,0.542]
[1744884739533,0.30647391,587.0,585.98,0.542]
[1744884739734,0.30647391,586.99,585.99,0.31339081]
[1744884739930,0.30647391,586.98,585.99,0.31339081]
[1744884740130,0.30647391,587.0,585.99,0.31339081]
[1744884740331,0.30647391,586.97,585.99,0.31339081]
[1744884740535,0.30647391,586.96,585.99,0.31339081]
[1744884740736,0.30647391,586.95,585.99,0.31339081]
[1744884740935,0.475,586.95,585.99,0.31339081]
[1744884741132,0.30647391,586.94,585.99,0.31339081]
[1744884741330,0.30647391,586.94,585.98,0.542]
[1744884746335,0.475,586.95,585.98,0.542]
[1744884746540,0.30647376,586.94,585.98,0.542]
[1744884748845,0.475,586.95,585.98,0.542]
[1744884749043,0.30649771,586.94,585.98,0.542]
[1744884750544,0.30649771,586.94,585.97,1.21]
[1744884750844,0.29682829,586.93,585.97,1.21]
[1744884751145,0.30655443,586.92,585.97,1.21]
[1744884752842,0.30655443,586.94,585.97,1.21]
[1744884753143,0.34076194,586.92,585.98,0.674]
[1744884753338,0.30655443,586.91,585.98,0.674]
[1744884753542,0.34077355,586.9,585.98,0.674]
[1744884753743,0.30655443,586.89,585.98,0.674]
[1744884754043,0.34078516,586.88,585.98,0.674]
[1744884754344,0.30655443,586.87,585.98,0.674]
[1744884754544,0.34079678,586.86,585.98,0.674]
[1744884754842,0.30655443,586.85,585.98,0.674]
[1744884755043,0.34080839,586.84,585.98,0.674]
[1744884755245,0.30655443,586.83,585.98,0.674]
[1744884755446,0.34082001,586.82,585.98,0.674]
[1744884755644,0.30655443,586.81,585.98,0.674]
[1744884755842,0.34083162,586.8,585.98,0.674]
[1744884756043,0.30655443,586.79,585.98,0.674]
[1744884756242,0.34084324,586.78,585.98,0.674]
[1744884756443,0.30655443,586.77,585.98,0.674]
[1744884756643,0.34085486,586.76,585.98,0.674]
[1744884756846,0.30655443,586.75,585.98,0.674]
[1744884757045,0.34086648,586.74,585.98,0.674]
[1744884757249,0.30655443,586.73,585.98,0.674]
[1744884757447,0.3408781,586.72,585.98,0.674]
[1744884757643,0.30655443,586.71,585.98,0.674]
[1744884759948,0.29690173,586.7,585.98,0.674]
[1744884760148,0.30655443,586.69,585.98,0.674]
[1744884761950,0.34090134,586.68,585.98,0.674]
[1744884762150,0.30655443,586.67,585.98,0.674]
[1744884762351,0.34091296,586.66,585.98,0.674]
[1744884762553,0.30655443,586.65,585.98,0.674]
[1744884762754,0.34092458,586.64,585.98,0.674]
[1744884762947,0.63787444,586.64,585.98,0.674]
[1744884763552,0.30672863,586.63,585.98,0.674]
[1744884764254,0.34093621,586.62,585.98,0.674]
[1744884764454,0.30672863,586.61,585.98,0.674]
[1744884764949,0.29696507,586.6,585.98,0.674]
[1744884765154,0.30672863,586.59,585.98,0.674]
[1744884766256,0.87496507,586.6,585.98,0.674]
[1744884766456,0.3068075,586.59,585.98,0.674]
[1744884768454,0.3068075,586.59,585.99,0.725]
[1744884768656,0.3068075,586.59,585.99,1.443]
[1744884769050,0.29699928,586.58,585.99,1.443]
[1744884769352,0.3068075,586.57,585.99,1.443]
[1744884769556,0.29699928,586.58,585.99,1.443]
[1744884769754,0.30682956,586.57,585.99,1.443]
[1744884772658,0.34097108,586.56,585.99,1.443]
[1744884772858,0.30682956,586.55,585.99,1.443]
[1744884773761,0.30682956,586.54,585.99,1.443]
[1744884773963,0.30682956,586.53,585.99,1.443]
[1744884774164,0.30682956,586.52,585.99,1.443]
[1744884774461,0.34097108,586.56,585.99,1.443]
[1744884774862,0.30691107,586.55,585.99,1.443]
[1744884775065,0.30691107,586.54,585.99,1.443]
[1744884775262,0.30691107,586.53,585.99,1.443]
[1744884775458,0.30691107,586.55,585.99,1.443]
[1744884776464,0.3068751,586.54,585.99,1.443]
[1744884776664,0.34098852,586.53,585.99,1.443]
[1744884776964,0.3068751,586.52,585.99,1.443]
[1744884777164,0.34100015,586.51,585.99,1.443]
[1744884777365,0.3068751,586.5,585.99,1.443]
[1744884777561,0.34101178,586.49,585.99,1.443]
[1744884777761,0.3068751,586.48,585.99,1.443]
[1744884777958,0.34102341,586.47,585.99,1.443]
[1744884778160,0.3068751,586.46,585.99,1.443]
[1744884778460,0.34103504,586.45,585.99,1.443]
[1744884778664,0.3068751,586.44,585.99,1.443]
[1744884778865,0.34104667,586.43,585.99,1.443]
[1744884779064,0.3068751,586.42,585.99,1.443]
[1744884779464,0.3410583,586.41,585.99,1.443]
[1744884779665,0.3068751,586.4,585.99,1.443]
[1744884779865,0.34106993,586.39,585.99,1.443]
[1744884781167,0.30684923,586.38,585.99,1.443]
[1744884781363,0.34108156,586.37,585.99,1.443]
[1744884781566,0.30684923,586.36,585.99,1.443]
[1744884781762,0.3410932,586.35,585.99,1.443]
[1744884796173,0.30681105,586.34,585.99,1.443]
[1744884796976,0.3410932,586.35,585.99,1.443]
[1744884797176,0.30681076,586.34,585.99,1.443]
[1744884797373,0.3410932,586.35,585.99,1.443]
[1744884797575,0.30681079,586.34,585.99,1.443]
[1744884801379,0.34110483,586.33,585.99,1.443]
[1744884801579,0.30681079,586.32,585.99,1.443]
[1744884801777,0.34111647,586.31,585.99,1.443]
[1744884802080,0.30681079,586.3,585.99,1.443]
[1744884802281,0.64793308,586.3,585.99,1.443]
[1744884802482,0.30681079,586.29,585.99,1.443]
[1744884804075,0.34113392,586.28,585.99,1.443]
[1744884804277,0.30681079,586.27,585.99,1.443]
[1744884804577,0.34114556,586.26,585.99,1.443]
[1744884804883,0.30681079,586.25,585.99,1.443]
[1744884805082,0.60388487,586.25,585.99,1.443]
[1744884805283,0.30681079,586.24,585.99,1.443]
[1744884805484,0.29707408,586.25,585.99,1.443]
[1744884805680,0.30688073,586.24,585.99,1.443]
[1744884805880,0.29707408,586.25,585.99,1.443]
[1744884806689,0.34114556,586.26,585.99,1.443]
[1744884806893,0.30688073,586.25,585.99,1.443]
[1744884807084,0.29707534,586.24,585.99,1.443]
[1744884808793,0.30688775,586.23,585.99,1.443]
[1744884808987,0.29707534,586.24,585.99,1.443]
[1744884809190,0.64804781,586.23,585.99,1.443]
[1744884809394,0.64805363,586.22,585.99,1.443]
[1744884809588,0.64805945,586.21,585.99,1.443]
[1744884809792,0.34118048,586.2,585.99,1.443]
[1744884814197,0.29698281,586.19,585.99,1.443]
[1744884814598,0.34119212,586.18,585.99,1.443]
[1744884817098,0.29707915,586.17,585.99,1.443]
[1744884817300,0.34120376,586.16,585.99,1.443]
[1744884820002,0.29706647,586.15,585.99,1.443]
[1744884821500,0.29706647,586.15,585.99,0.718]
[1744884821697,0.34120376,586.16,585.76,0.778]
[1744884825410,0.34120376,586.16,585.65,1.368]
[1744884827805,0.30689908,586.15,585.65,1.368]
[1744884832507,0.34120376,586.16,585.65,1.368]
[1744884843915,0.633,586.15,585.65,1.368]
[1744884847421,0.97420958,586.15,585.65,2.103]
[1744884847622,0.3412154,586.14,585.65,2.103]
[1744884847821,0.30694558,586.13,585.65,2.103]
[1744884848118,0.3412154,586.14,585.65,2.103]
[1744884850021,0.29716286,586.13,585.65,2.103]
[1744884850218,0.29716286,586.13,585.65,0.735]
[1744884851720,0.3412154,586.14,585.65,0.735]
[1744884852025,0.29716413,586.12,585.65,0.735]
[1744884854725,0.3412154,586.14,585.65,0.735]
[1744884856327,0.29716286,586.13,585.65,0.735]
[1744884857726,0.3412154,586.14,585.65,0.735]
[1744884859030,0.29716286,586.13,585.65,0.735]
[1744884860828,0.3412154,586.14,585.65,0.735]
[1744884861027,0.29716413,586.12,585.65,0.735]
[1744884861523,0.64814344,586.11,585.65,0.735]
[1744884861729,0.30691057,586.1,585.65,0.735]
[1744884862228,0.34124451,586.09,585.65,0.735]
[1744884862528,0.30691057,586.08,585.65,0.735]
[1744884862825,0.34125616,586.07,585.65,0.735]
[1744884863027,0.30691057,586.06,585.65,0.735]